[Event "*** Titled Tuesday Blitz"]
[Site "Chess.com"]
[Date "2021.04.06"]
[Round "6"]
[White "elegant285"]
[Black "K_A_S_T_O_R"]
[Result "0-1"]
[WhiteElo "2364"]
[BlackElo "2776"]
[TimeControl "180+1"]
[EndTime "11:06:56 PDT"]
[Termination "K_A_S_T_O_R won by resignation"]

1. d4 {[%clk 0:03:00.9]} 1... Nf6 {[%clk 0:02:58.7]} 2. c4 {[%clk 0:03:00.5]}
2... g6 {[%clk 0:02:59.1]} 3. Nc3 {[%clk 0:03:00.2]} 3... Bg7 {[%clk 0:02:59.5]}
4. e4 {[%clk 0:03:00.1]} 4... d6 {[%clk 0:03:00.1]} 5. Be2 {[%clk 0:03:00.4]}
5... O-O {[%clk 0:03:00.6]} 6. Bg5 {[%clk 0:03:00.8]} 6... c5 {[%clk 0:03:00.2]}
7. d5 {[%clk 0:03:00.4]} 7... e6 {[%clk 0:03:00.1]} 8. Qd2 {[%clk 0:02:59.3]}
8... exd5 {[%clk 0:02:59.5]} 9. exd5 {[%clk 0:03:00.2]} 9... Qb6 {[%clk
0:02:58.4]} 10. Nf3 {[%clk 0:02:52.1]} 10... Bg4 {[%clk 0:02:57.6]} 11. O-O
{[%clk 0:02:47.6]} 11... Nbd7 {[%clk 0:02:53.1]} 12. Rae1 {[%clk 0:02:22.4]}
12... Bxf3 {[%clk 0:02:50.8]} 13. Bxf3 {[%clk 0:02:23.3]} 13... Rfe8 {[%clk
0:02:50.8]} 14. b3 {[%clk 0:02:16.7]} 14... a6 {[%clk 0:02:48.5]} 15. Rxe8+
{[%clk 0:01:59.5]} 15... Rxe8 {[%clk 0:02:47.2]} 16. Re1 {[%clk 0:02:00]} 16...
Qa5 {[%clk 0:02:41.6]} 17. Rxe8+ {[%clk 0:01:47.7]} 17... Nxe8 {[%clk
0:02:40.7]} 18. Ne4 {[%clk 0:01:47.7]} 18... Qa3 {[%clk 0:02:34.3]} 19. Bf4
{[%clk 0:01:26.8]} 19... Be5 {[%clk 0:02:32.1]} 20. Be3 {[%clk 0:01:15.6]} 20...
b5 {[%clk 0:02:27.5]} 21. h4 {[%clk 0:01:05.9]} 21... bxc4 {[%clk 0:02:19.8]}
22. bxc4 {[%clk 0:01:06.8]} 22... Nef6 {[%clk 0:02:14.8]} 23. Nxf6+ {[%clk
0:00:41.9]} 23... Bxf6 {[%clk 0:02:12]} 24. Bf4 {[%clk 0:00:40.9]} 24... Be5
{[%clk 0:02:09.2]} 25. Bg4 {[%clk 0:00:33.1]} 25... Bxf4 {[%clk 0:02:06.6]} 26.
Qxf4 {[%clk 0:00:34]} 26... Ne5 {[%clk 0:02:06.6]} 27. Be2 {[%clk 0:00:22.7]}
27... Qxa2 {[%clk 0:02:04.4]} 28. Qe4 {[%clk 0:00:21.6]} 28... Qa1+ {[%clk
0:02:02.6]} 29. Kh2 {[%clk 0:00:21.6]} 29... Qd4 {[%clk 0:02:02.5]} 30. Qc2
{[%clk 0:00:20.2]} 30... Qxh4+ {[%clk 0:02:00.2]} 31. Kg1 {[%clk 0:00:20.1]}
31... Qd4 {[%clk 0:01:58.2]} 32. Qb3 {[%clk 0:00:20.1]} 32... Qd2 {[%clk
0:01:54.1]} 33. Bf1 {[%clk 0:00:19.7]} 33... Ng4 {[%clk 0:01:50.8]} 34. Qg3
{[%clk 0:00:14.9]} 34... h5 {[%clk 0:01:50]} 35. f3 {[%clk 0:00:13.1]} 35... Ne3
{[%clk 0:01:36.2]} 36. Qxd6 {[%clk 0:00:11.4]} 36... Qe1 {[%clk 0:01:36.1]} 37.
Qb8+ {[%clk 0:00:08.6]} 37... Kh7 {[%clk 0:01:35.4]} 38. Qf4 {[%clk 0:00:07.7]}
38... Qxf1+ {[%clk 0:01:34]} 0-1

[Event "*** Titled Tuesday Blitz"]
[Site "Chess.com"]
[Date "2021.04.06"]
[Round "6"]
[White "xurramid77"]
[Black "jonaszmb"]
[Result "1-0"]
[WhiteElo "2622"]
[BlackElo "2500"]
[TimeControl "180+1"]
[EndTime "11:06:57 PDT"]
[Termination "xurramid77 won by checkmate"]

1. e4 {[%clk 0:03:00.9]} 1... c5 {[%clk 0:02:59.8]} 2. c3 {[%clk 0:03:01]} 2...
e5 {[%clk 0:02:50.9]} 3. Nf3 {[%clk 0:02:57.9]} 3... Nc6 {[%clk 0:02:50.1]} 4.
Bc4 {[%clk 0:02:57.4]} 4... Nf6 {[%clk 0:02:47.5]} 5. Ng5 {[%clk 0:02:46.6]}
5... d5 {[%clk 0:02:36.9]} 6. exd5 {[%clk 0:02:45.6]} 6... Nxd5 {[%clk
0:01:59.3]} 7. d3 {[%clk 0:02:45.4]} 7... Be7 {[%clk 0:01:54.6]} 8. Qh5 {[%clk
0:02:42.6]} 8... g6 {[%clk 0:01:33.7]} 9. Qf3 {[%clk 0:02:42.1]} 9... Bxg5
{[%clk 0:01:32.9]} 10. Bxd5 {[%clk 0:02:38.9]} 10... O-O {[%clk 0:01:29.2]} 11.
Bxg5 {[%clk 0:02:38.1]} 11... Qxg5 {[%clk 0:01:30.1]} 12. Nd2 {[%clk 0:02:27.1]}
12... Bg4 {[%clk 0:01:03.7]} 13. Qg3 {[%clk 0:02:24.9]} 13... Qf4 {[%clk
0:00:57.7]} 14. Qxf4 {[%clk 0:02:20.2]} 14... exf4 {[%clk 0:00:58.6]} 15. Ne4
{[%clk 0:02:11.5]} 15... Kg7 {[%clk 0:00:53.2]} 16. Bxc6 {[%clk 0:02:07.2]}
16... bxc6 {[%clk 0:00:54.1]} 17. Nxc5 {[%clk 0:02:06.4]} 17... Rfe8+ {[%clk
0:00:53.5]} 18. Kf1 {[%clk 0:02:00.2]} 18... a5 {[%clk 0:00:17.7]} 19. f3 {[%clk
0:01:55.2]} 19... Bf5 {[%clk 0:00:17.8]} 20. Kf2 {[%clk 0:01:55.7]} 20... Rab8
{[%clk 0:00:17.1]} 21. b3 {[%clk 0:01:49.8]} 21... Rb5 {[%clk 0:00:09.5]} 22. d4
{[%clk 0:01:47.3]} 22... Rd8 {[%clk 0:00:08.3]} 23. Rhe1 {[%clk 0:01:45.5]}
23... h5 {[%clk 0:00:08.1]} 24. Re7 {[%clk 0:01:39.1]} 24... h4 {[%clk 0:00:03]}
25. Rae1 {[%clk 0:01:39]} 25... h3 {[%clk 0:00:02.6]} 26. g4 {[%clk 0:01:37.1]}
26... fxg3+ {[%clk 0:00:03.5]} 27. Kxg3 {[%clk 0:01:37.5]} 27... Rh8 {[%clk
0:00:02.6]} 28. R1e5 {[%clk 0:01:34.5]} 28... Rh5 {[%clk 0:00:01.9]} 29. Rc7
{[%clk 0:01:29.6]} 29... Rg5+ {[%clk 0:00:02]} 30. Kf4 {[%clk 0:01:25.3]} 30...
Rg2 {[%clk 0:00:02.9]} 31. Ree7 {[%clk 0:01:24.9]} 31... Rxc5 {[%clk 0:00:01.5]}
32. Rxf7+ {[%clk 0:01:24.6]} 32... Kh6 {[%clk 0:00:01.7]} 33. Rh7# {[%clk
0:01:24.5]} 1-0

[Event "*** Titled Tuesday Blitz"]
[Site "Chess.com"]
[Date "2021.04.06"]
[Round "6"]
[White "sau6on"]
[Black "fastestmindalive"]
[Result "0-1"]
[WhiteElo "2361"]
[BlackElo "2764"]
[TimeControl "180+1"]
[EndTime "11:06:59 PDT"]
[Termination "fastestmindalive won by checkmate"]

1. e4 {[%clk 0:03:00.9]} 1... c5 {[%clk 0:02:59.9]} 2. Nf3 {[%clk 0:02:59.9]}
2... Nc6 {[%clk 0:02:57.4]} 3. d4 {[%clk 0:03:00]} 3... cxd4 {[%clk 0:02:58.3]}
4. Nxd4 {[%clk 0:03:00]} 4... Nf6 {[%clk 0:02:57.7]} 5. Nc3 {[%clk 0:02:59.4]}
5... d6 {[%clk 0:02:57.9]} 6. Bg5 {[%clk 0:02:58]} 6... e6 {[%clk 0:02:57.9]} 7.
Qd2 {[%clk 0:02:57.9]} 7... a6 {[%clk 0:02:57.3]} 8. O-O-O {[%clk 0:02:57.6]}
8... Bd7 {[%clk 0:02:57.9]} 9. f4 {[%clk 0:02:57.4]} 9... b5 {[%clk 0:02:57]}
10. Bxf6 {[%clk 0:02:56.9]} 10... gxf6 {[%clk 0:02:56.9]} 11. Kb1 {[%clk
0:02:56.5]} 11... Qb6 {[%clk 0:02:47.5]} 12. Nxc6 {[%clk 0:02:47]} 12... Bxc6
{[%clk 0:02:48.4]} 13. f5 {[%clk 0:02:47.3]} 13... b4 {[%clk 0:02:46.3]} 14. Ne2
{[%clk 0:02:45.5]} 14... e5 {[%clk 0:02:46.5]} 15. Ng3 {[%clk 0:02:44.2]} 15...
h5 {[%clk 0:02:45.9]} 16. h4 {[%clk 0:02:42.7]} 16... Qc5 {[%clk 0:02:45.3]} 17.
Qe2 {[%clk 0:02:36.4]} 17... a5 {[%clk 0:02:36]} 18. Nxh5 {[%clk 0:02:31.8]}
18... Ke7 {[%clk 0:02:35.7]} 19. g4 {[%clk 0:02:29.7]} 19... Rxh5 {[%clk
0:02:21.9]} 20. gxh5 {[%clk 0:02:28.2]} 20... Bh6 {[%clk 0:02:22.3]} 21. Rh3
{[%clk 0:02:24.7]} 21... a4 {[%clk 0:02:21.3]} 22. Qd3 {[%clk 0:01:51.8]} 22...
Rg8 {[%clk 0:01:59.4]} 23. Rg3 {[%clk 0:01:35.7]} 23... Rxg3 {[%clk 0:01:56.8]}
24. Qxg3 {[%clk 0:01:36.6]} 24... Bxe4 {[%clk 0:01:56.8]} 25. Bd3 {[%clk
0:01:36.9]} 25... Bd5 {[%clk 0:01:48.2]} 26. Qe1 {[%clk 0:01:24.2]} 26... b3
{[%clk 0:01:36.9]} 27. cxb3 {[%clk 0:01:08.8]} 27... axb3 {[%clk 0:01:37.8]} 28.
a3 {[%clk 0:01:02.3]} 28... Bf3 {[%clk 0:01:37]} 29. Rc1 {[%clk 0:00:37.1]}
29... Bxc1 {[%clk 0:01:27]} 30. Qxc1 {[%clk 0:00:38]} 30... Qd4 {[%clk
0:01:24.8]} 31. Qc7+ {[%clk 0:00:33.1]} 31... Kf8 {[%clk 0:01:24.6]} 32. Qd8+
{[%clk 0:00:26.1]} 32... Kg7 {[%clk 0:01:24.4]} 33. h6+ {[%clk 0:00:26.3]} 33...
Kh7 {[%clk 0:01:24.1]} 34. Qxf6 {[%clk 0:00:08]} 34... Qxd3+ {[%clk 0:01:22.7]}
35. Ka1 {[%clk 0:00:08.9]} 35... Qd1# {[%clk 0:01:22.8]} 0-1

[Event "*** Titled Tuesday Blitz"]
[Site "Chess.com"]
[Date "2021.04.06"]
[Round "6"]
[White "kubal123"]
[Black "Vesper2018"]
[Result "1-0"]
[WhiteElo "2244"]
[BlackElo "2543"]
[TimeControl "180+1"]
[EndTime "11:07:00 PDT"]
[Termination "kubal123 won by resignation"]

1. Nf3 {[%clk 0:02:52.7]} 1... Nf6 {[%clk 0:02:59.2]} 2. g3 {[%clk 0:02:53.6]}
2... g6 {[%clk 0:02:59.3]} 3. Bg2 {[%clk 0:02:53.5]} 3... Bg7 {[%clk 0:02:59.9]}
4. O-O {[%clk 0:02:54]} 4... O-O {[%clk 0:03:00.1]} 5. d4 {[%clk 0:02:54.9]}
5... d6 {[%clk 0:02:58.8]} 6. c4 {[%clk 0:02:52]} 6... Nc6 {[%clk 0:02:58.6]} 7.
Nc3 {[%clk 0:02:51.8]} 7... a6 {[%clk 0:02:58.6]} 8. d5 {[%clk 0:02:38.6]} 8...
Na5 {[%clk 0:02:57.5]} 9. Nd2 {[%clk 0:02:39]} 9... c5 {[%clk 0:02:58.1]} 10. e4
{[%clk 0:02:38.1]} 10... b5 {[%clk 0:02:40]} 11. cxb5 {[%clk 0:02:23.2]} 11...
axb5 {[%clk 0:02:39.7]} 12. Nxb5 {[%clk 0:02:23.7]} 12... Ba6 {[%clk 0:02:38.6]}
13. a4 {[%clk 0:02:23.9]} 13... Qb6 {[%clk 0:02:30.4]} 14. Re1 {[%clk
0:02:10.9]} 14... Bxb5 {[%clk 0:02:23.4]} 15. axb5 {[%clk 0:02:11.8]} 15... Qxb5
{[%clk 0:02:24]} 16. e5 {[%clk 0:01:56]} 16... dxe5 {[%clk 0:02:04.9]} 17. Rxe5
{[%clk 0:01:55.7]} 17... Rfd8 {[%clk 0:01:49.5]} 18. Rxe7 {[%clk 0:01:33.4]}
18... Rab8 {[%clk 0:01:42.2]} 19. Nb1 {[%clk 0:01:10]} 19... Nb3 {[%clk
0:01:33.9]} 20. Nc3 {[%clk 0:01:10.3]} 20... Qb6 {[%clk 0:01:28.1]} 21. Raa7
{[%clk 0:01:06.4]} 21... Rf8 {[%clk 0:01:19.9]} 22. Bf4 {[%clk 0:01:04.8]} 22...
Rbc8 {[%clk 0:01:06.8]} 23. Rab7 {[%clk 0:01:04.2]} 23... Qd8 {[%clk 0:01:04.1]}
24. Qxb3 {[%clk 0:01:02.8]} 24... Re8 {[%clk 0:00:57]} 25. d6 {[%clk 0:01:00.2]}
25... c4 {[%clk 0:00:54.3]} 26. Qb5 {[%clk 0:00:56.9]} 26... Ra8 {[%clk
0:00:53.3]} 27. Rxe8+ {[%clk 0:00:44.3]} 27... Nxe8 {[%clk 0:00:52.7]} 28. d7
{[%clk 0:00:37.6]} 1-0

[Event "*** Titled Tuesday Blitz"]
[Site "Chess.com"]
[Date "2021.04.06"]
[Round "6"]
[White "PLAYER_2006_M"]
[Black "CSB7"]
[Result "0-1"]
[WhiteElo "2520"]
[BlackElo "2684"]
[TimeControl "180+1"]
[EndTime "11:07:02 PDT"]
[Termination "CSB7 won by resignation"]

1. d4 {[%clk 0:03:00.9]} 1... Nf6 {[%clk 0:02:57.4]} 2. Nc3 {[%clk 0:03:00.9]}
2... d5 {[%clk 0:02:57.1]} 3. Bf4 {[%clk 0:03:00.8]} 3... c5 {[%clk 0:02:56.9]}
4. e3 {[%clk 0:02:58]} 4... cxd4 {[%clk 0:02:56.8]} 5. exd4 {[%clk 0:02:58.7]}
5... a6 {[%clk 0:02:57.1]} 6. Nf3 {[%clk 0:02:59.4]} 6... Nc6 {[%clk 0:02:56.3]}
7. Ne5 {[%clk 0:02:59.6]} 7... Bd7 {[%clk 0:02:55.8]} 8. Nxc6 {[%clk 0:02:58.2]}
8... Bxc6 {[%clk 0:02:55.7]} 9. Bd3 {[%clk 0:02:58.7]} 9... e6 {[%clk 0:02:50]}
10. O-O {[%clk 0:02:58.4]} 10... Be7 {[%clk 0:02:50.4]} 11. Qf3 {[%clk 0:02:57]}
11... Rc8 {[%clk 0:02:46.1]} 12. Ne2 {[%clk 0:02:56.3]} 12... Bb5 {[%clk
0:02:39.1]} 13. Bxb5+ {[%clk 0:02:55.8]} 13... axb5 {[%clk 0:02:40]} 14. Qb3
{[%clk 0:02:56.4]} 14... Qd7 {[%clk 0:02:37.8]} 15. a3 {[%clk 0:02:48.7]} 15...
O-O {[%clk 0:02:13.2]} 16. Nc3 {[%clk 0:02:47.3]} 16... b4 {[%clk 0:02:10.4]}
17. axb4 {[%clk 0:02:46.4]} 17... Rc4 {[%clk 0:02:09.1]} 18. Be5 {[%clk
0:02:37]} 18... Rxb4 {[%clk 0:02:04.7]} 19. Qa2 {[%clk 0:02:37.2]} 19... Rc8
{[%clk 0:01:54.7]} 20. Rfe1 {[%clk 0:02:34.9]} 20... Ng4 {[%clk 0:01:43.9]} 21.
Bg3 {[%clk 0:02:21.1]} 21... Rxd4 {[%clk 0:01:36]} 22. h3 {[%clk 0:02:19.8]}
22... Nf6 {[%clk 0:01:35]} 23. Rad1 {[%clk 0:02:16.8]} 23... Rxd1 {[%clk
0:01:33.2]} 24. Rxd1 {[%clk 0:02:14.9]} 24... Qc6 {[%clk 0:01:28]} 25. Rd4
{[%clk 0:02:09.6]} 25... Bc5 {[%clk 0:01:18.5]} 26. Ra4 {[%clk 0:02:09.3]} 26...
h6 {[%clk 0:01:07.3]} 27. Be5 {[%clk 0:02:04.7]} 27... Nd7 {[%clk 0:01:02.9]}
28. Bd4 {[%clk 0:02:04.2]} 28... Nb6 {[%clk 0:00:54.9]} 29. Bxc5 {[%clk
0:01:28.2]} 29... Nxa4 {[%clk 0:00:53.7]} 30. Qxa4 {[%clk 0:01:29.1]} 30... Qxc5
{[%clk 0:00:51.8]} 31. Qd7 {[%clk 0:01:25.8]} 31... Qc7 {[%clk 0:00:44.7]} 32.
Qb5 {[%clk 0:01:24.8]} 32... d4 {[%clk 0:00:41.6]} 33. Ne4 {[%clk 0:01:23.7]}
33... Qxc2 {[%clk 0:00:39.3]} 34. Qxb7 {[%clk 0:01:21.8]} 34... Qc1+ {[%clk
0:00:36.9]} 35. Kh2 {[%clk 0:01:19.7]} 35... Qc7+ {[%clk 0:00:37.8]} 36. Qxc7
{[%clk 0:01:20.3]} 36... Rxc7 {[%clk 0:00:38.7]} 37. Kg3 {[%clk 0:01:20.8]}
37... Rb7 {[%clk 0:00:37.4]} 38. Kf4 {[%clk 0:01:13.3]} 38... Rxb2 {[%clk
0:00:38.3]} 39. Ke5 {[%clk 0:01:13.3]} 39... d3 {[%clk 0:00:37.9]} 40. Kd4
{[%clk 0:01:12.5]} 40... d2 {[%clk 0:00:34.6]} 41. Nc3 {[%clk 0:01:12.6]} 41...
Rc2 {[%clk 0:00:35]} 0-1

[Event "*** Titled Tuesday Blitz"]
[Site "Chess.com"]
[Date "2021.04.06"]
[Round "6"]
[White "Skatchkov_V"]
[Black "Lion-Al-Messi"]
[Result "1-0"]
[WhiteElo "2613"]
[BlackElo "2496"]
[TimeControl "180+1"]
[EndTime "11:07:02 PDT"]
[Termination "Skatchkov_V won on time"]

1. a3 {[%clk 0:02:59.4]} 1... e5 {[%clk 0:02:33.5]} 2. e4 {[%clk 0:02:59.5]}
2... Nf6 {[%clk 0:02:32.9]} 3. d4 {[%clk 0:03:00]} 3... exd4 {[%clk 0:02:31.2]}
4. e5 {[%clk 0:02:59.8]} 4... Qe7 {[%clk 0:02:31.3]} 5. Nf3 {[%clk 0:02:59.4]}
5... Nc6 {[%clk 0:02:31.5]} 6. Be2 {[%clk 0:02:59.6]} 6... Nxe5 {[%clk
0:02:30.7]} 7. Nxd4 {[%clk 0:03:00.1]} 7... d6 {[%clk 0:02:29.7]} 8. O-O {[%clk
0:03:00.4]} 8... Qd8 {[%clk 0:02:27.4]} 9. c4 {[%clk 0:03:00.1]} 9... Be7 {[%clk
0:02:27.4]} 10. Nc3 {[%clk 0:03:00.6]} 10... O-O {[%clk 0:02:26.7]} 11. Bf4
{[%clk 0:02:51.1]} 11... a6 {[%clk 0:02:24.1]} 12. Qc2 {[%clk 0:02:49.9]} 12...
Bg4 {[%clk 0:02:21.4]} 13. Rad1 {[%clk 0:02:43]} 13... Qc8 {[%clk 0:02:18.6]}
14. Rfe1 {[%clk 0:02:31.7]} 14... Bxe2 {[%clk 0:02:17.4]} 15. Rxe2 {[%clk
0:02:31.4]} 15... Ng6 {[%clk 0:02:02.1]} 16. Bg3 {[%clk 0:02:31.1]} 16... Qg4
{[%clk 0:01:51.6]} 17. h3 {[%clk 0:02:24.5]} 17... Qh5 {[%clk 0:01:48]} 18. Rde1
{[%clk 0:02:24.4]} 18... Rae8 {[%clk 0:01:41.1]} 19. Nd5 {[%clk 0:02:24.2]}
19... Nxd5 {[%clk 0:01:22.1]} 20. cxd5 {[%clk 0:02:25.1]} 20... Qxd5 {[%clk
0:01:22.2]} 21. Nf5 {[%clk 0:02:24.8]} 21... Qa5 {[%clk 0:00:34.9]} 22. b4
{[%clk 0:02:19.4]} 22... Qxa3 {[%clk 0:00:34.7]} 23. Nxe7+ {[%clk 0:01:57.2]}
23... Nxe7 {[%clk 0:00:34.4]} 24. Rxe7 {[%clk 0:01:58.1]} 24... Rxe7 {[%clk
0:00:32.7]} 25. Rxe7 {[%clk 0:01:59]} 25... Qxb4 {[%clk 0:00:32.7]} 26. Qxc7
{[%clk 0:01:59.1]} 26... b5 {[%clk 0:00:24.6]} 27. Bxd6 {[%clk 0:01:58.8]} 27...
Qb1+ {[%clk 0:00:24.5]} 28. Kh2 {[%clk 0:01:59.3]} 28... Qf5 {[%clk 0:00:21.4]}
29. Rd7 {[%clk 0:01:22.8]} 29... Re8 {[%clk 0:00:21.8]} 30. Rd8 {[%clk
0:01:23.3]} 30... Qe6 {[%clk 0:00:20.6]} 31. Be7 {[%clk 0:01:23.7]} 1-0

[Event "*** Titled Tuesday Blitz"]
[Site "Chess.com"]
[Date "2021.04.06"]
[Round "6"]
[White "kingnb"]
[Black "vinniethepooh"]
[Result "1-0"]
[WhiteElo "2594"]
[BlackElo "2720"]
[TimeControl "180+1"]
[EndTime "11:07:03 PDT"]
[Termination "kingnb won by resignation"]

1. d4 {[%clk 0:03:00.9]} 1... Nf6 {[%clk 0:03:00.1]} 2. Nf3 {[%clk 0:03:01.3]}
2... d5 {[%clk 0:03:00.3]} 3. e3 {[%clk 0:03:00.4]} 3... e6 {[%clk 0:02:59.5]}
4. Bd3 {[%clk 0:03:00]} 4... c5 {[%clk 0:02:57.6]} 5. c3 {[%clk 0:03:00.1]} 5...
Nc6 {[%clk 0:02:57.6]} 6. Nbd2 {[%clk 0:03:00.4]} 6... Bd6 {[%clk 0:02:55.6]} 7.
O-O {[%clk 0:03:00.2]} 7... O-O {[%clk 0:02:55.7]} 8. Qe2 {[%clk 0:03:00.1]}
8... e5 {[%clk 0:02:53.4]} 9. dxc5 {[%clk 0:03:00.5]} 9... Bxc5 {[%clk
0:02:53.3]} 10. e4 {[%clk 0:03:01.4]} 10... Bg4 {[%clk 0:02:49]} 11. exd5 {[%clk
0:02:53.4]} 11... Nxd5 {[%clk 0:02:46.6]} 12. Nb3 {[%clk 0:02:46.3]} 12... Be7
{[%clk 0:02:37.6]} 13. Rd1 {[%clk 0:02:45.6]} 13... Qb6 {[%clk 0:01:56.6]} 14.
Bxh7+ {[%clk 0:02:31.4]} 14... Kxh7 {[%clk 0:01:57.5]} 15. Rxd5 {[%clk
0:02:32.2]} 15... f5 {[%clk 0:01:56.7]} 16. h3 {[%clk 0:02:24]} 16... Bh5 {[%clk
0:01:18.9]} 17. Ng5+ {[%clk 0:02:04]} 17... Kg6 {[%clk 0:01:18.3]} 18. g4 {[%clk
0:02:04.2]} 18... fxg4 {[%clk 0:01:18.4]} 19. Qe4+ {[%clk 0:01:56.1]} 19... Rf5
{[%clk 0:01:18.6]} 20. Be3 {[%clk 0:01:55.9]} 20... Qc7 {[%clk 0:00:47]} 21.
hxg4 {[%clk 0:01:51.3]} 21... Bxg4 {[%clk 0:00:47.9]} 22. Qxg4 {[%clk
0:01:33.5]} 22... Bxg5 {[%clk 0:00:47.4]} 23. Rad1 {[%clk 0:01:31.5]} 23... Rd8
{[%clk 0:00:42.4]} 24. Nc5 {[%clk 0:01:26.1]} 24... Rxd5 {[%clk 0:00:27.1]} 25.
Rxd5 {[%clk 0:01:27]} 25... Ne7 {[%clk 0:00:19.3]} 26. Bxg5 {[%clk 0:01:18.4]}
26... Nxd5 {[%clk 0:00:02.4]} 27. Bd8+ {[%clk 0:01:15.9]} 27... Kh6 {[%clk
0:00:01.2]} 28. Bxc7 {[%clk 0:01:15.6]} 28... Rg5 {[%clk 0:00:01.9]} 29. Qxg5+
{[%clk 0:01:15.5]} 29... Kxg5 {[%clk 0:00:02.8]} 30. Bxe5 {[%clk 0:01:16.1]} 1-0

[Event "*** Titled Tuesday Blitz"]
[Site "Chess.com"]
[Date "2021.04.06"]
[Round "6"]
[White "Sueetin"]
[Black "Zmof"]
[Result "1-0"]
[WhiteElo "2403"]
[BlackElo "2216"]
[TimeControl "180+1"]
[EndTime "11:07:09 PDT"]
[Termination "Sueetin won by resignation"]

1. d4 {[%clk 0:03:00.9]} 1... f5 {[%clk 0:02:59.2]} 2. Nc3 {[%clk 0:03:00.1]}
2... Nf6 {[%clk 0:02:58.7]} 3. Bg5 {[%clk 0:03:00.6]} 3... c6 {[%clk 0:02:56.7]}
4. e3 {[%clk 0:02:56.5]} 4... Ne4 {[%clk 0:02:43.4]} 5. Nxe4 {[%clk 0:02:44.9]}
5... fxe4 {[%clk 0:02:43.3]} 6. f4 {[%clk 0:02:45.3]} 6... d5 {[%clk 0:02:30.3]}
7. Be2 {[%clk 0:02:35.4]} 7... Bf5 {[%clk 0:02:28.3]} 8. g4 {[%clk 0:02:22.3]}
8... Bg6 {[%clk 0:02:18.3]} 9. f5 {[%clk 0:02:21.8]} 9... Bf7 {[%clk 0:02:17.8]}
10. Nh3 {[%clk 0:02:19.6]} 10... Qa5+ {[%clk 0:02:16.7]} 11. c3 {[%clk
0:02:11.7]} 11... Nd7 {[%clk 0:02:15.9]} 12. Nf4 {[%clk 0:02:06.6]} 12... O-O-O
{[%clk 0:02:15.4]} 13. b4 {[%clk 0:02:06.3]} 13... Qa3 {[%clk 0:02:12.1]} 14.
Qb3 {[%clk 0:02:00.3]} 14... Qxb3 {[%clk 0:02:09.4]} 15. axb3 {[%clk 0:02:01.2]}
15... Kb8 {[%clk 0:02:09.8]} 16. Ne6 {[%clk 0:01:55.1]} 16... Bxe6 {[%clk
0:02:09.1]} 17. fxe6 {[%clk 0:01:56]} 17... Nf6 {[%clk 0:02:06.2]} 18. Bf4+
{[%clk 0:01:54.2]} 18... Ka8 {[%clk 0:02:02.4]} 19. Bc7 {[%clk 0:01:46.9]} 19...
Rc8 {[%clk 0:02:00.6]} 20. Bb6 {[%clk 0:01:46.9]} 20... a6 {[%clk 0:02:01]} 21.
g5 {[%clk 0:01:45.9]} 21... Ne8 {[%clk 0:02:00.5]} 22. Kd2 {[%clk 0:01:39.3]}
22... g6 {[%clk 0:01:56.7]} 23. h4 {[%clk 0:01:36.3]} 23... Bg7 {[%clk
0:01:55.6]} 24. Rhf1 {[%clk 0:01:26.3]} 24... Nd6 {[%clk 0:01:54.4]} 25. Bc5
{[%clk 0:01:11.9]} 25... Rhf8 {[%clk 0:01:50]} 26. Rxf8 {[%clk 0:01:04.2]} 26...
Bxf8 {[%clk 0:01:49.3]} 27. Rf1 {[%clk 0:01:02.6]} 27... Re8 {[%clk 0:01:14.9]}
28. Bg4 {[%clk 0:00:49.4]} 28... Kb8 {[%clk 0:01:14.1]} 29. Bxd6+ {[%clk
0:00:46.3]} 29... exd6 {[%clk 0:01:13]} 30. Rf7 {[%clk 0:00:47.2]} 30... b6
{[%clk 0:00:58.3]} 31. Rxh7 {[%clk 0:00:42.2]} 31... c5 {[%clk 0:00:56.4]} 32.
Rh8 {[%clk 0:00:35.1]} 32... Kc7 {[%clk 0:00:46.9]} 33. e7 {[%clk 0:00:31.8]}
33... Rxe7 {[%clk 0:00:47.2]} 34. Rxf8 {[%clk 0:00:31.6]} 34... Rf7 {[%clk
0:00:47.7]} 35. Rxf7+ {[%clk 0:00:31.4]} 1-0

[Event "*** Titled Tuesday Blitz"]
[Site "Chess.com"]
[Date "2021.04.06"]
[Round "6"]
[White "Fischerev7"]
[Black "mamonika"]
[Result "1-0"]
[WhiteElo "2276"]
[BlackElo "2023"]
[TimeControl "180+1"]
[EndTime "11:07:11 PDT"]
[Termination "Fischerev7 won by resignation"]

1. e4 {[%clk 0:02:54.2]} 1... c5 {[%clk 0:01:00.8]} 2. Nf3 {[%clk 0:02:33.4]}
2... Nc6 {[%clk 0:00:59.7]} 3. d4 {[%clk 0:02:32.7]} 3... cxd4 {[%clk
0:00:59.5]} 4. Nxd4 {[%clk 0:02:33.6]} 4... g6 {[%clk 0:00:58]} 5. c4 {[%clk
0:02:27.4]} 5... Bg7 {[%clk 0:00:57.7]} 6. Be3 {[%clk 0:02:27.8]} 6... Nf6
{[%clk 0:00:56.5]} 7. Nc3 {[%clk 0:02:26.9]} 7... d6 {[%clk 0:00:56.1]} 8. Be2
{[%clk 0:02:23.7]} 8... O-O {[%clk 0:00:55.9]} 9. Qd2 {[%clk 0:02:20.9]} 9...
Bd7 {[%clk 0:00:55.8]} 10. O-O {[%clk 0:02:19.6]} 10... Nxd4 {[%clk 0:00:56.1]}
11. Bxd4 {[%clk 0:02:19.4]} 11... Bc6 {[%clk 0:00:57]} 12. Qc2 {[%clk
0:02:18.7]} 12... a5 {[%clk 0:00:56]} 13. Rad1 {[%clk 0:02:18.1]} 13... Nd7
{[%clk 0:00:54.1]} 14. Bxg7 {[%clk 0:02:16.8]} 14... Kxg7 {[%clk 0:00:54.2]} 15.
f4 {[%clk 0:02:12.9]} 15... Nc5 {[%clk 0:00:52]} 16. e5 {[%clk 0:02:09.9]} 16...
Qb6 {[%clk 0:00:46.8]} 17. Kh1 {[%clk 0:01:54.2]} 17... dxe5 {[%clk 0:00:45.5]}
18. fxe5 {[%clk 0:01:53.8]} 18... Rad8 {[%clk 0:00:40.9]} 19. Nd5 {[%clk
0:01:54]} 19... Bxd5 {[%clk 0:00:28.1]} 20. cxd5 {[%clk 0:01:54.9]} 20... Nd7
{[%clk 0:00:26]} 21. d6 {[%clk 0:01:14.8]} 21... e6 {[%clk 0:00:26.3]} 22. Qe4
{[%clk 0:01:07.9]} 22... Qxb2 {[%clk 0:00:23.8]} 23. Rd4 {[%clk 0:01:00.2]}
23... Nc5 {[%clk 0:00:18]} 24. Qe3 {[%clk 0:00:54]} 24... Qxa2 {[%clk
0:00:13.5]} 25. h4 {[%clk 0:00:53]} 25... h5 {[%clk 0:00:13.2]} 26. Bxh5 {[%clk
0:00:51.4]} 26... g5 {[%clk 0:00:12]} 27. Qxg5+ {[%clk 0:00:51.4]} 1-0